bitfinex-derivatives/quotes_ETHF0:USTF0_20241004
["timestamp","ask_amount","ask_price","bid_price","bid_amount"]
[1728030312170,5.32245119,2394.3,2393.8,0.41776]
[1728030312364,6.36004635,2394.4,2393.9,5.1388]
[1728030312569,0.41768,2394.3,2394.0,0.9666]
[1728030312871,0.41769,2394.2,2394.0,0.9666]
[1728030313072,0.9035,2394.4,2394.0,0.9666]
[1728030313264,0.9035,2394.4,2393.9,1.8788]
[1728030313265,0.41771,2394.1,2393.9,1.8788]
[1728030313467,4.25205,2394.2,2393.7,0.9666]
[1728030313674,1.04428,2394.1,2393.5,4.148]
[1728030313874,0.41777,2393.8,2393.4,0.8986]
[1728030314068,4.90477119,2394.2,2393.5,3.26]
[1728030314267,0.41771,2394.1,2393.5,3.26]
[1728030314470,0.41771,2394.1,2393.6,3.2078]
[1728030314675,0.41771,2394.1,2393.7,1.8465]
[1728030314877,9.08227119,2394.3,2393.7,1.8465]
[1728030315083,1.04424,2394.2,2393.7,0.9169]
[1728030315374,0.41775,2393.9,2393.7,0.9169]
[1728030315587,0.9054,2393.8,2393.7,0.9169]
[1728030316886,0.9054,2393.8,2393.6,3.2078]
[1728030316887,1.32316,2393.8,2393.6,3.2078]
[1728030317279,1.32316,2393.8,2393.4,1.8155]
[1728030317681,0.41779,2393.7,2393.4,1.8155]
[1728030318286,0.4178,2393.6,2393.4,1.8155]
[1728030318590,0.9054,2393.8,2393.4,1.8155]
[1728030318591,0.41779,2393.7,2393.4,1.8155]
[1728030319684,1.32317,2393.8,2393.4,1.8155]
[1728030321283,0.9054,2393.8,2393.4,1.8155]
[1728030321889,0.9054,2393.8,2393.4,2.23332]
[1728030322093,3.2078,2394.0,2393.4,2.23332]
[1728030322094,3.2078,2394.0,2393.5,3.67781]
[1728030322297,6.29798119,2394.1,2393.6,0.41779]
[1728030322487,1.39321,2394.1,2393.7,0.9648]
[1728030322795,0.41774,2394.0,2393.7,0.9648]
[1728030323493,0.41775,2393.9,2393.7,0.9648]
[1728030323683,0.41777,2393.8,2393.4,1.8155]
[1728030323886,0.41778,2393.7,2393.4,1.8155]
[1728030324988,0.41779,2393.7,2393.4,1.8155]
[1728030326693,8.16477119,2394.0,2393.4,1.8155]
[1728030326694,0.41777,2393.8,2393.4,1.8155]
[1728030327294,0.41778,2393.7,2393.4,1.8155]
[1728030327890,0.41776,2393.8,2393.4,1.8155]
[1728030328287,9.20911119,2394.0,2393.4,1.8155]
[1728030328488,0.41779,2393.7,2393.4,1.8155]
[1728030331190,9.20911119,2394.0,2393.4,1.8155]
[1728030331387,9.20911119,2394.0,2393.4,0.8986]
[1728030331592,4.90477119,2394.0,2393.9,3.26]
[1728030331792,4.90477119,2394.5,2393.9,3.26]
[1728030331993,9.60704635,2394.7,2393.5,6.0196]
[1728030331994,4.1505,2394.7,2394.4,3.26]
[1728030332201,0.9427,2394.7,2394.4,3.26]
[1728030332690,0.9427,2394.7,2394.3,3.26]
[1728030332896,0.9427,2394.7,2394.2,0.9623]
[1728030334087,0.9427,2394.7,2394.3,3.26]
[1728030339797,1.36031,2394.7,2394.3,3.26]
[1728030341699,0.41763,2394.6,2394.3,3.26]
[1728030342315,0.9427,2394.7,2394.3,3.26]
[1728030342601,0.41763,2394.6,2394.3,3.26]
[1728030343198,0.9427,2394.7,2394.3,3.26]
[1728030343706,0.41763,2394.6,2394.3,3.26]
[1728030345402,0.9427,2394.7,2394.3,3.26]
[1728030345701,0.41762,2394.6,2394.3,3.26]
[1728030346106,0.41764,2394.5,2394.2,0.9623]
[1728030346404,0.41764,2394.6,2394.2,0.9623]
[1728030347604,1.872,2394.7,2394.2,0.9623]
[1728030347911,1.872,2394.7,2394.3,3.26]
[1728030347912,0.9427,2394.7,2394.3,3.26]
[1728030348406,1.36031,2394.7,2394.3,3.26]
[1728030349498,0.9427,2394.7,2394.3,3.26]
[1728030349707,0.9427,2394.7,2394.4,3.2078]
[1728030350503,1.36031,2394.7,2394.4,3.2078]
[1728030350809,0.9427,2394.7,2394.4,3.2078]
[1728030351008,1.36031,2394.7,2394.4,3.2078]
[1728030351197,0.9427,2394.7,2394.4,3.2078]
[1728030351395,0.9427,2394.7,2394.5,0.8782]
[1728030352001,1.36031,2394.7,2394.5,0.8782]
[1728030352509,0.9427,2394.7,2394.5,0.8782]
[1728030353005,5.0154,2395.0,2394.5,0.8782]
[1728030353006,1.8076,2395.0,2394.5,4.55583]
[1728030353203,6.15811439,2395.3,2394.8,3.26]
[1728030353204,1.30784,2395.1,2394.8,3.26]
[1728030353506,0.8903,2395.1,2394.8,3.26]
[1728030353710,1.30785,2395.1,2394.8,3.26]
[1728030353901,0.8903,2395.1,2394.8,3.26]
[1728030354103,0.41757,2394.9,2394.8,3.26]
[1728030354311,0.8903,2395.1,2394.6,4.2195]
[1728030354507,1.93417,2395.1,2394.6,4.2195]
[1728030354709,0.41759,2394.9,2394.6,4.2195]
[1728030356508,0.41759,2394.8,2394.6,0.9595]
[1728030356706,0.41759,2394.8,2394.1,0.21]
[1728030356707,3.26,2394.7,2394.1,3.4178]
[1728030356911,3.26,2394.7,2393.2,1.08362518]
[1728030356912,0.41774,2393.9,2393.8,0.21]
[1728030357213,0.41774,2393.9,2393.6,3.2078]
[1728030357214,0.41777,2393.8,2393.6,3.2078]
[1728030357404,1.38656,2393.8,2393.6,3.2078]
[1728030357805,1.38656,2393.8,2393.4,4.165]
[1728030357806,0.41779,2393.7,2393.4,4.165]
[1728030358002,0.9688,2393.8,2393.4,4.165]
[1728030359015,1.38656,2393.8,2393.4,4.165]
[1728030359716,0.9688,2393.8,2393.4,4.165]
[1728030359915,0.41772,2394.1,2393.6,3.26]
[1728030360104,0.9395,2394.1,2393.8,3.26]
[1728030360306,0.9395,2394.1,2393.7,0.8857]
[1728030361811,1.35722,2394.1,2393.7,0.8857]
[1728030362408,0.9395,2394.1,2393.7,0.8857]
[1728030362607,1.35722,2394.1,2393.7,0.8857]
[1728030362819,0.41773,2394.0,2393.7,0.8857]
[1728030363211,0.41773,2394.0,2393.3,0.9651]
[1728030363212,0.41781,2393.5,2393.3,0.9651]
[1728030363520,4.30441,2393.8,2393.2,0.9124]
[1728030363521,0.41781,2393.6,2393.2,0.9124]
[1728030363703,0.41784,2393.4,2393.2,0.9124]
[1728030363911,0.41783,2393.4,2393.2,0.9124]
[1728030364111,0.41785,2393.3,2393.2,0.9124]
[1728030364408,0.41787,2393.2,2393.1,3.2078]
[1728030364805,4.59627,2393.2,2393.1,3.2078]
[1728030365208,4.1784,2393.2,2392.7,3.2078]
[1728030365404,3.26,2393.3,2392.7,3.2078]
[1728030365405,0.4179,2393.1,2392.7,3.2078]
[1728030365714,0.9076,2393.0,2392.7,3.2078]
[1728030367121,1.3255,2393.0,2392.6,0.9124]
[1728030367317,3.67793,2392.9,2392.6,0.9124]
[1728030367615,3.26,2392.9,2392.6,0.9124]
[1728030367918,0.9076,2393.0,2392.6,0.9124]
[1728030368513,1.3255,2393.0,2392.6,0.9124]
[1728030368820,0.9076,2393.0,2392.6,0.9124]
[1728030369820,0.9076,2393.0,2392.7,0.9518]
[1728030370418,3.2078,2393.3,2392.7,1.36975]
[1728030370617,4.1458,2393.3,2392.7,1.36975]
[1728030370916,4.1458,2393.3,2392.7,0.9518]
[1728030371217,4.1458,2393.3,2392.7,1.36975]
[1728030371424,4.1458,2393.3,2392.7,0.9518]
[1728030371731,4.1458,2393.3,2392.7,1.36975]
[1728030372316,4.1458,2393.3,2392.7,0.9518]
[1728030372818,4.56365,2393.3,2392.7,0.9518]
[1728030373325,4.56366,2393.3,2392.7,0.9518]
[1728030373521,4.1458,2393.3,2392.7,1.36975]
[1728030373720,4.56366,2393.3,2392.7,0.9518]
[1728030374427,0.41787,2393.2,2392.7,0.9518]
[1728030374813,4.1458,2393.3,2392.7,0.9518]
[1728030375013,4.56366,2393.3,2392.7,0.9518]
[1728030377632,0.41787,2393.2,2392.7,4.1596]
[1728030377829,0.938,2393.3,2392.7,4.1596]
[1728030378026,1.35586,2393.3,2392.7,4.1596]
[1728030379124,0.938,2393.3,2392.7,4.1596]
[1728030379431,1.35586,2393.3,2392.7,4.1596]
[1728030379622,0.41787,2393.2,2392.7,4.1596]
[1728030380425,0.41789,2393.1,2392.7,4.1596]
[1728030382632,3.67788,2393.2,2392.7,4.1596]
[1728030383032,3.26,2393.2,2392.7,4.1596]
[1728030383238,3.67788,2393.2,2392.7,4.1596]
[1728030383730,0.41789,2393.1,2392.7,4.1596]
[1728030383931,1.35585,2393.3,2392.7,7.83754]
[1728030384331,0.938,2393.3,2392.7,7.4196]
[1728030384835,1.35586,2393.3,2392.7,7.83755]
[1728030386740,0.41787,2393.2,2392.7,7.4196]
[1728030387033,1.35586,2393.3,2392.7,7.83755]
[1728030387328,0.938,2393.3,2392.7,7.83755]
[1728030387533,0.41787,2393.2,2392.7,7.4196]
[1728030388033,0.938,2393.3,2392.7,7.4196]
[1728030388429,4.30467,2393.2,2392.7,4.1596]
[1728030388736,3.26,2392.8,2392.7,3.2078]
[1728030388924,3.67794,2392.8,2392.6,0.9124]
[1728030389124,0.8679,2392.7,2392.6,0.9124]
[1728030393426,8.3071,2392.7,2392.2,4.0924]
[1728030393634,0.8679,2392.7,2392.3,0.9083]
[1728030393934,0.8679,2392.7,2392.3,1.32632]
[1728030394335,0.8679,2392.7,2392.3,0.9083]
[1728030394537,0.8679,2392.7,2392.3,4.58631]
[1728030394844,0.8679,2392.7,2392.3,4.1683]
[1728030395341,0.8679,2392.7,2392.3,4.58632]
[1728030396734,0.8679,2392.7,2392.3,4.1683]
[1728030397728,1.28586,2392.7,2392.3,4.1683]
[1728030397936,0.8679,2392.7,2392.3,4.1683]
[1728030399030,1.28586,2392.7,2392.3,4.1683]
[1728030399230,0.8679,2392.7,2392.3,4.58632]
[1728030399635,0.8985,2393.1,2392.6,3.26]
[1728030399833,1.8022,2393.3,2392.6,3.26]
[1728030400043,1.8022,2393.3,2392.5,3.2078]
[1728030400044,3.67792,2393.0,2392.5,3.2078]
[1728030400437,0.41793,2392.9,2392.5,3.2078]
[1728030400634,0.9188,2392.8,2392.5,3.2078]
[1728030400831,1.33674,2392.8,2392.5,3.2078]
[1728030401140,0.9188,2392.8,2392.5,3.2078]
[1728030406343,3.62569,2393.1,2392.5,3.62578]
[1728030406543,4.51069,2393.1,2392.5,3.62578]
[1728030406739,1.30289,2393.1,2392.5,3.62578]
[1728030406944,1.30289,2393.1,2392.6,0.41797]
[1728030407145,1.30289,2393.1,2392.5,3.62578]
[1728030407546,0.885,2393.1,2392.5,3.62579]
[1728030407747,3.6779,2393.0,2392.5,3.62579]
[1728030408139,3.26,2393.0,2392.6,0.41796]
[1728030408448,1.30289,2393.1,2392.5,3.2078]
[1728030408645,0.41792,2393.0,2392.5,3.2078]
[1728030408844,0.885,2393.1,2392.5,3.2078]
[1728030409151,0.41793,2392.9,2392.5,3.2078]
[1728030409751,3.26,2393.0,2392.5,3.2078]
[1728030409944,0.41792,2392.9,2392.5,3.2078]
[1728030410849,3.26,2393.0,2392.5,3.2078]
[1728030411044,0.41794,2392.8,2392.5,3.2078]
[1728030412246,12.41734119,2393.0,2392.5,3.2078]
[1728030412545,0.41795,2392.8,2392.5,3.2078]
[1728030414454,0.41796,2392.7,2392.5,3.2078]
[1728030414849,7.70929119,2392.9,2392.5,3.2078]
[1728030415146,0.41795,2392.8,2392.5,3.2078]
[1728030415354,0.9199,2392.7,2392.5,3.2078]
[1728030415564,0.41801,2392.4,2392.3,1.8404]
[1728030415857,0.418,2392.5,2392.3,1.8404]
[1728030416051,0.41801,2392.4,2392.3,0.9083]
[1728030416448,0.893,2392.5,2392.3,0.9083]
[1728030416761,1.311,2392.5,2392.3,0.9083]
[1728030416948,0.893,2392.5,2392.3,0.9083]
[1728030417151,0.893,2392.5,2392.0,4.9897]
[1728030417347,0.41803,2392.3,2392.0,5.8836]
[1728030417651,0.41803,2392.3,2391.3,3.87012518]
[1728030417652,0.41812,2391.8,2391.4,0.21]
[1728030417856,0.41812,2391.8,2391.5,2.7643]
[1728030417857,0.41813,2391.7,2391.5,2.7643]
[1728030418051,0.886,2391.7,2391.5,2.7643]
[1728030418249,0.886,2391.7,2391.1,5.25660545]
[1728030418250,0.41817,2391.5,2391.1,5.25660545]
[1728030418446,3.26,2391.4,2391.2,0.8939]
[1728030418755,3.26,2391.4,2391.0,3.2078]
[1728030418756,3.67819,2391.4,2391.0,3.2078]
[1728030419256,3.26,2391.4,2391.0,3.2078]
[1728030419458,1.32547,2391.5,2391.0,3.2078]
[1728030419757,1.32546,2391.5,2391.1,1.8301]
[1728030420258,1.32546,2391.5,2391.0,3.2078]
[1728030420259,0.41819,2391.4,2391.0,3.2078]
[1728030420459,3.26,2391.4,2391.0,3.2078]
[1728030420654,0.9073,2391.5,2391.0,3.2078]
[1728030420862,3.26,2391.6,2391.1,0.41823]
[1728030421157,3.26,2391.6,2391.2,0.41821]
[1728030421354,5.45654635,2392.0,2390.8,5.984]
[1728030421355,8.11257119,2392.1,2391.6,0.41814]
[1728030421555,0.9207,2392.0,2391.7,0.9149]
[1728030421755,0.9207,2392.0,2391.7,2.673]
[1728030422462,4.1807,2392.0,2391.7,2.673]
[1728030422658,4.1807,2392.0,2391.6,3.2078]
[1728030422854,4.1807,2392.0,2391.3,3.62599]
[1728030422855,3.26,2391.8,2391.3,3.62599]
[1728030423952,3.67812,2391.8,2391.3,3.2078]
[1728030424153,3.26,2391.8,2391.3,3.62599]
[1728030424353,3.26,2391.8,2391.3,3.2078]
[1728030424756,3.26,2391.8,2391.3,3.62599]
[1728030425164,3.26,2391.8,2391.4,0.41817]
[1728030425365,3.26,2391.8,2391.3,3.2078]
[1728030425366,4.1807,2392.0,2391.3,3.2078]
[1728030425666,0.41815,2391.6,2391.3,3.2078]
[1728030425970,0.9346,2391.5,2391.2,2.7471]
[1728030426667,0.9346,2391.5,2391.3,3.2078]
[1728030426860,3.67812,2391.8,2391.3,3.626]
[1728030427056,0.8888,2391.7,2391.3,3.626]
[1728030427262,0.8888,2391.7,2391.3,3.62599]
[1728030427454,0.8888,2391.7,2391.3,3.2078]
[1728030427866,0.8888,2391.7,2391.3,3.626]
[1728030428565,4.57599,2392.0,2391.3,3.2078]
[1728030428755,4.57599,2392.0,2391.4,0.41818]
[1728030428756,0.8888,2391.9,2391.4,0.41818]
[1728030428955,0.8888,2391.9,2391.6,0.41815]
[1728030429169,0.8888,2391.9,2391.7,0.9181]
[1728030429463,1.30689,2391.9,2391.7,0.9181]
[1728030429656,0.8888,2391.9,2391.7,0.9181]
[1728030430560,0.8888,2391.9,2391.8,0.9179]
[1728030431667,0.41807,2392.1,2391.8,0.9179]
[1728030431862,1.36127,2392.1,2391.8,0.9179]
[1728030432563,0.41808,2392.0,2391.8,0.9179]
[1728030432766,1.36127,2392.1,2391.8,0.9179]
[1728030433163,3.26,2392.0,2391.8,0.9179]
[1728030433361,3.67809,2392.0,2391.8,0.9179]
[1728030433968,3.26,2392.0,2391.8,0.9179]
[1728030434357,3.2078,2392.4,2391.8,0.9179]
[1728030434572,1.35643,2392.3,2391.9,1.794]
[1728030435365,1.35643,2392.3,2391.9,5.0018]
[1728030435565,3.26,2392.2,2391.9,5.0018]
[1728030435764,0.41809,2391.9,2391.8,0.9179]
[1728030436658,3.26,2391.9,2391.5,1.8219]
[1728030436864,0.9388,2391.8,2391.5,2.7318]
[1728030437665,1.35692,2391.8,2391.5,2.7318]
[1728030437971,0.9388,2391.8,2391.5,2.7318]
[1728030438765,0.9388,2391.8,2391.5,5.9396]
[1728030441273,1.35692,2391.8,2391.5,5.9396]
[1728030441467,0.9388,2391.8,2391.5,5.9396]
[1728030442467,1.35692,2391.8,2391.5,5.9396]
[1728030442769,0.9388,2391.8,2391.5,5.9396]
[1728030443173,0.9388,2391.8,2391.5,4.1177]
[1728030443373,0.9388,2391.8,2391.5,4.53586]
[1728030443573,0.9388,2391.8,2391.6,0.41814]
[1728030443776,0.41806,2392.2,2391.7,0.41812]
[1728030444068,0.41806,2392.2,2391.8,1.4374]
[1728030444069,1.11256,2392.2,2391.8,1.4374]
[1728030444265,1.11255,2392.2,2391.8,1.85551]
[1728030444465,0.6945,2392.2,2391.9,0.6048]
[1728030444667,1.11254,2392.2,2391.9,0.6048]
[1728030444868,0.6945,2392.2,2391.9,0.6048]
[1728030445375,4.37256,2392.2,2391.9,0.6048]
[1728030445572,2.75589,2392.7,2391.9,0.6048]
[1728030445573,3.26,2393.0,2392.6,0.41797]
[1728030445779,9.66877119,2393.2,2392.7,0.6048]
[1728030445965,5.18188,2393.2,2392.7,0.6048]
[1728030446165,5.18188,2393.2,2392.7,3.8126]
[1728030446371,5.18188,2393.2,2392.7,4.23055]
[1728030446577,3.9925,2393.2,2392.7,4.23055]
[1728030446877,4.41037,2393.2,2392.7,4.23055]
[1728030447082,4.41037,2393.2,2392.7,3.8126]
[1728030448169,0.20950846,2393.0,2392.7,3.8126]
[1728030448569,0.20950846,2393.0,2392.7,4.23054]
[1728030448770,3.2078,2393.6,2393.2,0.41787]
[1728030448971,47.59783073,2394.0,2393.6,0.41779]
[1728030448972,47.42134,2394.0,2393.6,0.41779]
[1728030449172,47.42134,2394.0,2393.8,3.2078]
[1728030449371,47.42134,2394.0,2393.9,0.6572]
[1728030454174,47.83907,2394.0,2393.5,3.2078]
[1728030455885,47.83908,2394.0,2393.5,3.2078]
[1728030458583,47.42134,2394.0,2393.5,3.2078]
[1728030459084,47.83907,2394.0,2393.5,3.2078]
[1728030460290,47.42134,2394.0,2393.5,3.2078]
[1728030460476,0.41775,2393.9,2393.5,3.2078]
[1728030460878,47.83908,2394.0,2393.5,3.2078]
[1728030462689,47.42134,2394.0,2393.5,3.2078]
[1728030462885,0.41775,2393.9,2393.5,3.2078]
[1728030463582,47.42134,2394.0,2393.5,3.2078]
[1728030463583,0.41777,2393.8,2393.5,3.2078]
[1728030463790,47.42134,2394.0,2393.5,3.2078]
[1728030464095,0.4178,2393.6,2393.2,3.2078]
[1728030467190,4.87824,2393.8,2393.2,3.2078]
[1728030467381,0.6176,2393.5,2393.2,3.2078]
[1728030468493,1.03542,2393.5,2393.2,3.2078]
[1728030468991,0.6176,2393.5,2393.2,3.2078]
[1728030469889,1.03542,2393.5,2393.2,3.2078]
[1728030470389,0.41783,2393.4,2393.2,3.2078]
[1728030470893,1.03542,2393.5,2393.2,3.2078]
[1728030471594,1.03542,2393.5,2393.3,3.2078]
[1728030471992,0.6176,2393.5,2393.3,6.4678]
[1728030472190,47.42134,2394.0,2393.3,6.4678]
[1728030472191,0.41776,2393.9,2393.3,6.88564]
[1728030472385,0.41776,2393.9,2393.5,3.26]
[1728030472386,1.05566,2393.9,2393.5,3.26]
[1728030472584,0.6379,2393.9,2393.5,3.26]
[1728030472894,1.05565,2393.9,2393.5,3.26]
[1728030473284,0.41777,2393.8,2393.4,1.2463]
[1728030473488,1.05565,2393.9,2393.4,1.2463]
[1728030473692,0.41777,2393.8,2393.4,1.2463]
[1728030474090,0.6379,2393.9,2393.4,1.2463]
[1728030474091,47.42134,2394.0,2393.7,6.88557]
[1728030474289,47.42134,2394.0,2393.9,3.67774]
[1728030474487,47.42134,2394.0,2393.9,7.85454]
[1728030474693,47.42134,2394.0,2393.9,13.85454]
[1728030475090,47.42134,2394.0,2393.9,7.85454]
[1728030475297,47.42134,2394.0,2393.9,3.67774]
[1728030476389,47.42134,2394.0,2393.9,3.26]
[1728030476811,47.42134,2394.0,2393.9,8.51324]
[1728030477094,47.42134,2394.0,2393.9,0.6587]
[1728030479895,47.83907,2394.0,2393.9,0.6587]
[1728030480092,51.59814,2394.0,2393.7,3.2078]
[1728030480288,0.41776,2393.8,2393.7,3.2078]
[1728030480495,0.41776,2393.8,2393.5,0.6266]
[1728030481195,1.2882,2393.9,2393.4,3.26]
[1728030481398,1.2882,2393.9,2393.5,3.2078]
[1728030481399,0.4178,2393.6,2393.5,3.2078]
[1728030481897,0.41784,2393.4,2393.0,6.4678]
[1728030482096,0.6402,2393.3,2393.0,6.4678]
[1728030482296,1.05805,2393.3,2393.0,6.4678]
[1728030482695,1.05805,2393.3,2393.0,3.2078]
[1728030482696,0.6402,2393.3,2393.0,3.2078]
[1728030483002,0.41788,2393.1,2392.9,0.6132]
[1728030483302,0.41788,2393.2,2392.9,0.6132]
[1728030483699,0.41789,2393.1,2392.9,0.6132]
[1728030483894,0.6402,2393.3,2392.9,0.6132]
[1728030484102,0.41789,2393.1,2392.9,0.6132]
[1728030485498,0.4179,2393.0,2392.6,11.2433]
[1728030485805,0.41789,2393.1,2392.6,11.2647]
[1728030486102,0.6402,2393.3,2392.6,7.1167]
[1728030486103,0.41791,2393.0,2392.6,7.1167]
[1728030486298,0.41793,2392.9,2392.6,3.8567]
[1728030486510,0.6589,2393.2,2392.6,3.8567]
[1728030486694,0.41788,2393.2,2392.8,3.26]
[1728030486893,1.05806,2393.3,2392.8,3.26]
[1728030487306,0.6402,2393.3,2393.0,3.26]
[1728030487497,0.6402,2393.3,2393.1,0.6392]
[1728030487693,0.4178,2393.6,2393.2,3.26]
[1728030488096,0.41783,2393.5,2393.1,0.6392]
[1728030488901,2.2669,2393.8,2393.1,0.6392]
[1728030489099,4.30446,2393.7,2393.1,0.6392]
[1728030489308,4.25233,2393.6,2393.1,0.6392]
[1728030489601,0.41786,2393.3,2393.1,0.6392]
[1728030490002,0.41787,2393.2,2393.1,0.6392]
[1728030490198,0.41787,2393.2,2392.9,3.2078]
[1728030492706,0.41786,2393.3,2392.9,3.2078]
[1728030493914,1.06734,2393.4,2392.9,3.2078]
[1728030494208,0.41783,2393.4,2392.9,3.2078]
[1728030494412,3.62561,2393.6,2393.0,3.67789]
[1728030495004,3.2078,2393.6,2393.0,3.26]
[1728030495202,3.2078,2393.6,2393.0,3.6779]
[1728030495417,0.41782,2393.5,2393.0,3.6779]
[1728030496607,0.41783,2393.4,2393.0,3.26]
[1728030496801,0.41786,2393.3,2393.0,3.26]
[1728030497313,3.26,2393.3,2392.9,3.2078]
[1728030497614,0.4179,2393.0,2392.9,3.2078]
[1728030497913,1.66217,2393.2,2392.9,3.2078]
[1728030497914,0.41789,2393.1,2392.9,3.2078]
[1728030498208,0.5998,2393.5,2393.0,3.26]
[1728030498401,0.5998,2393.5,2392.9,3.2078]
[1728030498402,0.41788,2393.2,2392.9,3.2078]
[1728030498607,0.41786,2393.3,2392.9,3.2078]
[1728030499410,1.03532,2393.5,2393.0,3.26]
[1728030500221,0.6175,2393.5,2393.1,0.41787]
[1728030500404,0.6175,2393.5,2393.2,3.26]
[1728030500609,0.6175,2393.5,2393.2,4.4693]
[1728030502210,3.2078,2393.6,2393.2,8.09497]
[1728030502406,1.65663,2393.8,2393.2,7.6771]
[1728030502613,0.4178,2393.6,2393.2,7.6771]
[1728030503008,1.65663,2393.8,2393.5,3.2078]
[1728030503528,0.41778,2393.7,2393.5,3.2078]
[1728030503815,0.4178,2393.6,2393.5,3.2078]
[1728030504017,0.6122,2393.8,2393.5,3.2078]
[1728030504215,0.41778,2393.7,2393.5,3.2078]
[1728030504412,0.6122,2393.8,2393.5,3.2078]
[1728030504617,1.02996,2393.8,2393.5,3.2078]
[1728030504809,0.41778,2393.7,2393.5,3.2078]
[1728030505521,1.02997,2393.8,2393.5,3.2078]
[1728030506712,0.6122,2393.8,2393.5,3.2078]
[1728030506917,1.02997,2393.8,2393.5,3.2078]
[1728030507520,0.6122,2393.8,2393.5,3.2078]
[1728030508211,0.4178,2393.6,2393.2,7.6771]
[1728030509310,0.41778,2393.7,2393.2,7.6771]
[1728030509621,0.4178,2393.6,2393.2,7.6771]
[1728030510319,1.65662,2393.8,2393.2,7.6771]
[1728030510519,0.41781,2393.6,2393.2,7.6771]
[1728030512121,0.41782,2393.5,2393.2,7.6771]
[1728030512516,0.41785,2393.3,2393.2,3.823]
[1728030512723,0.41785,2393.3,2393.2,0.6152]
[1728030513823,1.01905,2393.3,2393.2,0.6152]
[1728030515518,0.41787,2393.2,2392.8,3.8543]
[1728030515720,0.41787,2393.2,2392.8,4.4858]
[1728030515721,0.41788,2393.2,2392.8,4.4858]
[1728030515914,0.41791,2393.0,2392.8,3.8393]
[1728030516417,0.41792,2392.9,2392.8,0.6315]
[1728030517627,3.2078,2393.2,2392.8,0.6315]
[1728030517823,0.41792,2392.9,2392.8,0.6315]
[1728030518024,0.41791,2393.0,2392.8,0.6315]
[1728030519727,0.41792,2392.9,2392.8,0.6315]
[1728030520228,3.8741,2393.1,2392.5,3.2078]
[1728030520427,3.8741,2393.1,2391.9,3.2078]
[1728030520428,0.41805,2392.2,2391.9,3.2078]
[1728030520621,1.04501,2392.5,2391.7,0.6379]
[1728030520622,3.26,2392.4,2391.7,0.6379]
[1728030520825,1.06176,2392.1,2391.7,0.6379]
[1728030521124,0.41808,2392.0,2391.7,0.6379]
[1728030521320,0.6437,2392.1,2391.7,0.6379]
[1728030521719,0.41808,2392.0,2391.7,0.6379]
[1728030522120,0.6437,2392.1,2391.7,0.6379]
[1728030522328,0.41808,2392.0,2391.7,0.6379]
[1728030522726,0.41813,2391.7,2391.1,0.41823]
[1728030522926,3.26,2391.9,2391.1,0.41823]
[1728030522927,0.41815,2391.6,2391.1,0.41823]
[1728030523229,0.41814,2391.7,2391.3,3.2078]
[1728030523534,0.41815,2391.6,2391.3,3.2078]
[1728030523824,0.41814,2391.7,2391.4,0.6478]
[1728030524129,3.26,2391.9,2391.4,0.6478]
[1728030524326,0.41816,2391.5,2391.4,0.6478]
[1728030525229,3.26,2391.7,2391.4,0.6478]
[1728030525431,0.41815,2391.6,2391.4,0.6478]
[1728030525638,3.26,2391.7,2391.4,0.6478]
[1728030525931,3.67814,2391.7,2391.4,0.6478]
[1728030526431,3.67813,2391.7,2391.4,0.6478]
[1728030527633,3.67811,2391.9,2391.4,0.6478]
[1728030528031,0.41812,2391.8,2391.4,0.6478]
[1728030528228,3.6781,2391.9,2391.4,0.6478]
[1728030528429,3.6781,2391.9,2391.4,1.06598]
[1728030528835,3.6781,2391.9,2391.4,0.6478]
[1728030529133,3.6781,2391.9,2391.4,1.06598]
[1728030529836,3.6781,2391.9,2391.4,0.6478]
[1728030530126,0.41812,2391.8,2391.4,0.6478]
[1728030530333,3.26,2391.9,2391.4,0.6478]
[1728030530527,3.26,2391.9,2391.4,1.06597]
[1728030531135,3.67809,2391.9,2391.4,1.06597]
[1728030531332,3.26,2391.9,2391.4,0.6478]
[1728030531522,0.6437,2392.1,2391.4,0.6478]
[1728030531523,0.41808,2392.0,2391.5,1.04796]
[1728030531722,0.41808,2392.0,2391.5,0.6298]
[1728030532029,0.41808,2392.0,2391.5,1.04795]
[1728030533624,0.41809,2391.9,2391.5,1.04795]
[1728030533831,0.41808,2392.0,2391.6,0.41814]
[1728030534227,3.9037,2392.1,2391.5,1.04796]
[1728030534535,0.41808,2392.0,2391.5,0.6298]
[1728030534725,0.41808,2392.0,2391.6,0.41815]
[1728030534928,0.41808,2392.0,2391.5,1.04795]
[1728030535327,0.4181,2391.9,2391.5,1.04795]
[1728030536335,0.41811,2391.8,2391.5,1.04795]
[1728030537037,3.9037,2392.1,2391.5,1.04795]
[1728030537242,3.9037,2392.1,2391.5,0.6298]
[1728030537443,0.41812,2391.8,2391.5,0.6298]
[1728030537641,0.4181,2391.9,2391.5,1.04796]
[1728030537836,3.9037,2392.1,2391.6,0.41814]
[1728030538038,0.4181,2391.9,2391.6,0.41814]
[1728030538245,0.41811,2391.8,2391.6,3.2078]
[1728030538441,0.41811,2391.9,2391.6,3.2078]
[1728030541244,0.41809,2392.0,2391.6,3.62594]
[1728030542651,0.41808,2392.0,2391.6,3.62594]